[Event "*** Titled Tuesday Blitz"]
[Site "Chess.com"]
[Date "2019.07.02"]
[Round "8"]
[White "chess4life23"]
[Black "Squirlolz"]
[Result "0-1"]
[WhiteElo "2332"]
[BlackElo "2505"]
[TimeControl "180+2"]
[EndTime "14:48:51 PDT"]
[Termination "Squirlolz won by resignation"]

1. d4 {[%clk 0:03:01.9]} 1... Nf6 {[%clk 0:03:00.2]} 2. c4 {[%clk 0:03:02.9]}
2... b6 {[%clk 0:03:01.7]} 3. Nf3 {[%clk 0:03:01.1]} 3... Bb7 {[%clk 0:03:02.8]}
4. a3 {[%clk 0:03:02]} 4... g6 {[%clk 0:02:59]} 5. Nc3 {[%clk 0:03:02.4]} 5...
Bg7 {[%clk 0:02:59.7]} 6. d5 {[%clk 0:03:00.5]} 6... e6 {[%clk 0:02:55.7]} 7. e4
{[%clk 0:03:01.3]} 7... exd5 {[%clk 0:02:56.8]} 8. exd5 {[%clk 0:03:02.2]} 8...
O-O {[%clk 0:02:57.1]} 9. Be2 {[%clk 0:03:03.2]} 9... c6 {[%clk 0:02:57.9]} 10.
O-O {[%clk 0:03:03.5]} 10... cxd5 {[%clk 0:02:59.2]} 11. cxd5 {[%clk 0:03:04.3]}
11... Re8 {[%clk 0:02:55.8]} 12. Bf4 {[%clk 0:03:03.8]} 12... Nh5 {[%clk
0:02:42]} 13. Be3 {[%clk 0:03:02.1]} 13... d6 {[%clk 0:02:37.5]} 14. Nd4 {[%clk
0:02:49.8]} 14... Nf6 {[%clk 0:02:38.3]} 15. Bf3 {[%clk 0:02:50.6]} 15... Nbd7
{[%clk 0:02:08.8]} 16. Nc6 {[%clk 0:02:49.6]} 16... Qc8 {[%clk 0:02:10.1]} 17.
Rc1 {[%clk 0:02:48.7]} 17... Bxc6 {[%clk 0:01:57.7]} 18. dxc6 {[%clk 0:02:48.8]}
18... Ne5 {[%clk 0:01:59.1]} 19. Nb5 {[%clk 0:02:43.8]} 19... Nxf3+ {[%clk
0:01:51.8]} 20. Qxf3 {[%clk 0:02:45.7]} 20... Re6 {[%clk 0:01:53.1]} 21. Rfd1
{[%clk 0:02:44.8]} 21... d5 {[%clk 0:01:40.9]} 22. c7 {[%clk 0:01:56]} 22... a6
{[%clk 0:01:27.1]} 23. Rxd5 {[%clk 0:01:45.8]} 23... Nxd5 {[%clk 0:01:20.8]} 24.
Qxd5 {[%clk 0:01:46.5]} 24... axb5 {[%clk 0:00:51.6]} 25. Qxa8 {[%clk
0:01:13.3]} 25... Qxa8 {[%clk 0:00:53.5]} 26. c8=Q+ {[%clk 0:01:14.5]} 26... Re8
{[%clk 0:00:54.9]} 27. Qc2 {[%clk 0:00:55]} 27... h5 {[%clk 0:00:50]} 28. Bxb6
{[%clk 0:00:48.8]} 28... Bh6 {[%clk 0:00:28.2]} 29. Rd1 {[%clk 0:00:49.6]} 29...
Qa6 {[%clk 0:00:24.1]} 30. Bd4 {[%clk 0:00:36.8]} 30... Qe6 {[%clk 0:00:24.2]}
31. g3 {[%clk 0:00:32.5]} 31... h4 {[%clk 0:00:24.6]} 32. Bc3 {[%clk 0:00:23.5]}
32... h3 {[%clk 0:00:25.1]} 33. f4 {[%clk 0:00:14.2]} 33... Qc4 {[%clk 0:00:22]}
34. Qd2 {[%clk 0:00:09.1]} 34... Bf8 {[%clk 0:00:12.8]} 35. Qd4 {[%clk
0:00:07.8]} 35... Bc5 {[%clk 0:00:13.2]} 0-1

[Event "*** Titled Tuesday Blitz"]
[Site "Chess.com"]
[Date "2019.07.02"]
[Round "8"]
[White "IveBeenThroughPain"]
[Black "sebsep"]
[Result "1-0"]
[WhiteElo "2306"]
[BlackElo "2138"]
[TimeControl "180+2"]
[EndTime "14:48:52 PDT"]
[Termination "IveBeenThroughPain won by resignation"]

1. d4 {[%clk 0:03:01.9]} 1... Nf6 {[%clk 0:03:00.3]} 2. c4 {[%clk 0:03:02.5]}
2... g6 {[%clk 0:03:00.9]} 3. g3 {[%clk 0:03:03]} 3... Bg7 {[%clk 0:03:02]} 4.
Bg2 {[%clk 0:03:04.5]} 4... d6 {[%clk 0:03:03.4]} 5. Nf3 {[%clk 0:03:06]} 5...
O-O {[%clk 0:03:04.9]} 6. O-O {[%clk 0:03:07.6]} 6... Nbd7 {[%clk 0:03:06.2]} 7.
Nc3 {[%clk 0:03:09.1]} 7... e5 {[%clk 0:03:07.7]} 8. e4 {[%clk 0:03:10.5]} 8...
c6 {[%clk 0:03:08.4]} 9. h3 {[%clk 0:03:10.5]} 9... Re8 {[%clk 0:03:09.4]} 10.
Be3 {[%clk 0:03:11.2]} 10... Qa5 {[%clk 0:03:10.4]} 11. Qd2 {[%clk 0:03:10.5]}
11... exd4 {[%clk 0:02:59.7]} 12. Nxd4 {[%clk 0:03:11.2]} 12... Nc5 {[%clk
0:03:01.6]} 13. Nb3 {[%clk 0:03:05.1]} 13... Nxb3 {[%clk 0:02:41.8]} 14. axb3
{[%clk 0:03:06.6]} 14... Qb4 {[%clk 0:02:43]} 15. Qc2 {[%clk 0:03:03.2]} 15...
d5 {[%clk 0:02:29.4]} 16. exd5 {[%clk 0:03:00.1]} 16... cxd5 {[%clk 0:02:30]}
17. cxd5 {[%clk 0:03:01.6]} 17... Bf5 {[%clk 0:02:29.8]} 18. Qd1 {[%clk
0:02:54]} 18... Ne4 {[%clk 0:02:21.9]} 19. Ra4 {[%clk 0:02:49.1]} 19... Nxc3
{[%clk 0:02:17.3]} 20. Rxb4 {[%clk 0:02:50.4]} 20... Nxd1 {[%clk 0:02:17.7]} 21.
Rxd1 {[%clk 0:02:52.1]} 21... Bxb2 {[%clk 0:02:14.4]} 22. Rxb7 {[%clk
0:02:52.8]} 22... Rab8 {[%clk 0:02:15.6]} 23. Rxa7 {[%clk 0:02:45]} 23... Rxb3
{[%clk 0:02:15.9]} 24. d6 {[%clk 0:02:45.1]} 24... Rd8 {[%clk 0:02:11.9]} 25. d7
{[%clk 0:02:35.7]} 25... Bf6 {[%clk 0:01:55.3]} 26. Bf4 {[%clk 0:02:35.7]} 26...
Kg7 {[%clk 0:01:38.6]} 27. g4 {[%clk 0:02:29.3]} 27... Be6 {[%clk 0:01:38.7]}
28. g5 {[%clk 0:02:19.8]} 28... Bb2 {[%clk 0:01:24.6]} 29. Rb1 {[%clk
0:02:13.4]} 29... Kg8 {[%clk 0:01:17.6]} 30. Rd1 {[%clk 0:01:50.5]} 30... Kg7
{[%clk 0:01:08.3]} 31. Rd2 {[%clk 0:01:45.4]} 31... Bc3 {[%clk 0:01:00.8]} 32.
Rd3 {[%clk 0:01:45.6]} 32... Rb1+ {[%clk 0:00:44.1]} 33. Kh2 {[%clk 0:01:44.9]}
33... Bb2 {[%clk 0:00:45.6]} 34. h4 {[%clk 0:01:31]} 34... h6 {[%clk 0:00:42.8]}
35. gxh6+ {[%clk 0:01:30.3]} 35... Kh7 {[%clk 0:00:42]} 36. Bg5 {[%clk
0:01:31.7]} 36... f6 {[%clk 0:00:43.2]} 37. Be3 {[%clk 0:01:33]} 37... Bf5
{[%clk 0:00:37]} 38. Rd2 {[%clk 0:01:09.3]} 38... Bc3 {[%clk 0:00:37.7]} 39. Rd5
{[%clk 0:01:01.3]} 39... Rb2 {[%clk 0:00:35.4]} 40. Kg3 {[%clk 0:00:55.1]} 40...
Be5+ {[%clk 0:00:32.4]} 41. f4 {[%clk 0:00:54.1]} 41... Bb8 {[%clk 0:00:33.3]}
42. Ra6 {[%clk 0:00:46.5]} 42... Rxg2+ {[%clk 0:00:33.3]} 43. Kxg2 {[%clk
0:00:42.8]} 43... Be4+ {[%clk 0:00:35.2]} 44. Kg3 {[%clk 0:00:43.8]} 44... Bxd5
{[%clk 0:00:36.7]} 45. Rxf6 {[%clk 0:00:45.5]} 45... Be4 {[%clk 0:00:36.7]} 46.
Rf7+ {[%clk 0:00:44.9]} 46... Kg8 {[%clk 0:00:33.1]} 47. Rg7+ {[%clk 0:00:46.1]}
47... Kf8 {[%clk 0:00:31.2]} 48. Bc5+ {[%clk 0:00:44.7]} 1-0

[Event "*** Titled Tuesday Blitz"]
[Site "Chess.com"]
[Date "2019.07.02"]
[Round "8"]
[White "Berardino"]
[Black "Tjktiger"]
[Result "0-1"]
[WhiteElo "2551"]
[BlackElo "2870"]
[TimeControl "180+2"]
[EndTime "14:48:59 PDT"]
[Termination "Tjktiger won by resignation"]

1. d4 {[%clk 0:02:59.7]} 1... Nf6 {[%clk 0:03:00.7]} 2. c4 {[%clk 0:03:00.6]}
2... g6 {[%clk 0:03:01.4]} 3. Nc3 {[%clk 0:03:01.6]} 3... d5 {[%clk 0:03:02.3]}
4. cxd5 {[%clk 0:03:02]} 4... Nxd5 {[%clk 0:03:04.2]} 5. e4 {[%clk 0:03:03.5]}
5... Nxc3 {[%clk 0:03:05.7]} 6. bxc3 {[%clk 0:03:05]} 6... Bg7 {[%clk
0:03:07.5]} 7. Be3 {[%clk 0:03:06]} 7... c5 {[%clk 0:03:08.1]} 8. Nf3 {[%clk
0:03:07.2]} 8... Qa5 {[%clk 0:03:08.5]} 9. Qd2 {[%clk 0:03:05.8]} 9... Nc6
{[%clk 0:03:09.5]} 10. Rb1 {[%clk 0:03:03.8]} 10... a6 {[%clk 0:03:10.7]} 11.
Rc1 {[%clk 0:03:04.2]} 11... cxd4 {[%clk 0:03:12.2]} 12. cxd4 {[%clk 0:03:02.8]}
12... Qxd2+ {[%clk 0:03:14.1]} 13. Kxd2 {[%clk 0:03:03.6]} 13... e6 {[%clk
0:03:15.6]} 14. Bc4 {[%clk 0:02:47.4]} 14... O-O {[%clk 0:03:06.4]} 15. Ke2
{[%clk 0:02:47.3]} 15... Rd8 {[%clk 0:02:57.4]} 16. Rhd1 {[%clk 0:02:48.1]}
16... Bd7 {[%clk 0:02:58.6]} 17. d5 {[%clk 0:02:36.8]} 17... exd5 {[%clk
0:02:58.2]} 18. Bxd5 {[%clk 0:02:37]} 18... Be8 {[%clk 0:02:48.6]} 19. Bb6
{[%clk 0:02:11.5]} 19... Rdc8 {[%clk 0:02:48.2]} 20. h4 {[%clk 0:01:53.4]} 20...
Nb4 {[%clk 0:02:08.7]} 21. Bxb7 {[%clk 0:00:52.2]} 21... Rxc1 {[%clk 0:02:05.7]}
22. Rxc1 {[%clk 0:00:52.7]} 22... Rb8 {[%clk 0:02:05.6]} 23. Rc8 {[%clk
0:00:53.1]} 23... Rxc8 {[%clk 0:02:04.4]} 24. Bxc8 {[%clk 0:00:54.3]} 24... Bb5+
{[%clk 0:02:05.9]} 25. Kd2 {[%clk 0:00:51]} 25... Nxa2 {[%clk 0:02:06.3]} 26.
Nd4 {[%clk 0:00:51.1]} 26... Bf1 {[%clk 0:01:58.8]} 27. g3 {[%clk 0:00:47.9]}
27... Nb4 {[%clk 0:01:51.1]} 28. Bc5 {[%clk 0:00:31.2]} 28... Nd3 {[%clk
0:01:51.9]} 29. Bb6 {[%clk 0:00:11]} 29... Nxf2 {[%clk 0:01:52.5]} 30. Ke1
{[%clk 0:00:12.1]} 30... Bh3 {[%clk 0:01:49.9]} 31. Bxh3 {[%clk 0:00:11]} 31...
Nxh3 {[%clk 0:01:50.8]} 32. Kf1 {[%clk 0:00:11.9]} 32... g5 {[%clk 0:01:52.1]}
33. Kg2 {[%clk 0:00:11.6]} 33... Bxd4 {[%clk 0:01:52.7]} 34. Bxd4 {[%clk
0:00:12.4]} 34... g4 {[%clk 0:01:54.3]} 35. Bb6 {[%clk 0:00:13.2]} 35... Kg7
{[%clk 0:01:54.1]} 36. Kf1 {[%clk 0:00:11.3]} 36... Kf6 {[%clk 0:01:54.8]} 37.
Ke2 {[%clk 0:00:12.6]} 37... Ke6 {[%clk 0:01:50.1]} 38. Kd3 {[%clk 0:00:13.9]}
38... h5 {[%clk 0:01:41.5]} 39. Kc4 {[%clk 0:00:13.2]} 39... Ke5 {[%clk
0:01:39]} 40. Kd3 {[%clk 0:00:14.3]} 40... Kd6 {[%clk 0:01:36.2]} 41. Kc4 {[%clk
0:00:13.4]} 41... Kc6 {[%clk 0:01:27.6]} 42. Bd4 {[%clk 0:00:14.1]} 42... Kd6
{[%clk 0:01:13.4]} 43. Kb4 {[%clk 0:00:14]} 43... Ke6 {[%clk 0:01:13.3]} 44. Ka5
{[%clk 0:00:15.1]} 44... f5 {[%clk 0:01:14.8]} 45. exf5+ {[%clk 0:00:16]} 45...
Kxf5 {[%clk 0:01:15.8]} 46. Kxa6 {[%clk 0:00:16.2]} 46... Ke4 {[%clk 0:01:17.5]}
47. Bc5 {[%clk 0:00:11.6]} 47... Kf3 {[%clk 0:01:18.6]} 0-1

[Event "*** Titled Tuesday Blitz"]
[Site "Chess.com"]
[Date "2019.07.02"]
[Round "8"]
[White "PIwan"]
[Black "ChessQueen"]
[Result "1-0"]
[WhiteElo "2481"]
[BlackElo "2588"]
[TimeControl "180+2"]
[EndTime "14:49:00 PDT"]
[Termination "PIwan won by checkmate"]

1. c4 {[%clk 0:03:01.9]} 1... e5 {[%clk 0:02:59.7]} 2. Nc3 {[%clk 0:03:02.8]}
2... Nf6 {[%clk 0:03:00.3]} 3. Nf3 {[%clk 0:03:03.6]} 3... Nc6 {[%clk
0:03:00.7]} 4. e3 {[%clk 0:03:04.7]} 4... Bb4 {[%clk 0:02:58.9]} 5. Qc2 {[%clk
0:03:06]} 5... Bxc3 {[%clk 0:02:42.7]} 6. Qxc3 {[%clk 0:03:07.9]} 6... Qe7
{[%clk 0:02:14.1]} 7. d4 {[%clk 0:02:52.4]} 7... exd4 {[%clk 0:02:13.9]} 8. Nxd4
{[%clk 0:02:51.4]} 8... Nxd4 {[%clk 0:02:14.8]} 9. Qxd4 {[%clk 0:02:53.3]} 9...
O-O {[%clk 0:02:15.7]} 10. Be2 {[%clk 0:02:50.8]} 10... Rd8 {[%clk 0:02:16.3]}
11. Bf3 {[%clk 0:02:46.3]} 11... d6 {[%clk 0:01:59.7]} 12. O-O {[%clk
0:02:46.2]} 12... Nd7 {[%clk 0:02:00.9]} 13. b3 {[%clk 0:02:42.5]} 13... Ne5
{[%clk 0:02:01.5]} 14. Be2 {[%clk 0:02:43]} 14... Nc6 {[%clk 0:01:54.4]} 15. Qc3
{[%clk 0:02:38.8]} 15... Qg5 {[%clk 0:01:53.7]} 16. f4 {[%clk 0:02:32.2]} 16...
Qg6 {[%clk 0:01:54.2]} 17. Bb2 {[%clk 0:02:24.9]} 17... Bf5 {[%clk 0:01:48.4]}
18. Bh5 {[%clk 0:02:09.8]} 18... Qh6 {[%clk 0:01:45.9]} 19. g4 {[%clk
0:01:36.6]} 19... f6 {[%clk 0:01:32.6]} 20. gxf5 {[%clk 0:01:24.1]} 20... Qxh5
{[%clk 0:01:33]} 21. e4 {[%clk 0:01:25.6]} 21... Re8 {[%clk 0:01:29.2]} 22. Rae1
{[%clk 0:01:26.8]} 22... Re7 {[%clk 0:01:26.4]} 23. Re3 {[%clk 0:01:12.2]} 23...
Rae8 {[%clk 0:01:20.4]} 24. Rg3 {[%clk 0:01:05.8]} 24... Kf8 {[%clk 0:01:19.2]}
25. Kh1 {[%clk 0:00:50.4]} 25... Nb8 {[%clk 0:00:24.2]} 26. e5 {[%clk
0:00:30.5]} 26... fxe5 {[%clk 0:00:17.2]} 27. f6 {[%clk 0:00:30.7]} 27... gxf6
{[%clk 0:00:12]} 28. Rfg1 {[%clk 0:00:31.9]} 28... Rf7 {[%clk 0:00:11.2]} 29. c5
{[%clk 0:00:30]} 29... Nc6 {[%clk 0:00:10.7]} 30. cxd6 {[%clk 0:00:26.8]} 30...
cxd6 {[%clk 0:00:12.1]} 31. Ba3 {[%clk 0:00:27.5]} 31... Ke7 {[%clk 0:00:13.4]}
32. Qd3 {[%clk 0:00:26.5]} 32... Rd8 {[%clk 0:00:14.7]} 33. Rg7 {[%clk
0:00:24.9]} 33... a6 {[%clk 0:00:08.1]} 34. Qd5 {[%clk 0:00:22.2]} 34... Kf8
{[%clk 0:00:05.9]} 35. Rg8+ {[%clk 0:00:22.2]} 35... Ke7 {[%clk 0:00:06.3]} 36.
Rxd8 {[%clk 0:00:20.9]} 36... Kxd8 {[%clk 0:00:07.5]} 37. Rg8+ {[%clk
0:00:15.8]} 37... Kc7 {[%clk 0:00:07.7]} 38. Bxd6+ {[%clk 0:00:16.3]} 38... Kb6
{[%clk 0:00:05.3]} 39. Qc5# {[%clk 0:00:16.8]} 1-0

[Event "*** Titled Tuesday Blitz"]
[Site "Chess.com"]
[Date "2019.07.02"]
[Round "8"]
[White "nitpicker"]
[Black "benhal"]
[Result "0-1"]
[WhiteElo "2244"]
[BlackElo "2412"]
[TimeControl "180+2"]
[EndTime "14:49:01 PDT"]
[Termination "benhal won on time"]

1. e4 {[%clk 0:03:01.9]} 1... c6 {[%clk 0:02:58.6]} 2. d4 {[%clk 0:03:01.6]}
2... g6 {[%clk 0:02:57.7]} 3. Nc3 {[%clk 0:02:56.8]} 3... Bg7 {[%clk 0:02:56.7]}
4. h3 {[%clk 0:02:57.8]} 4... d5 {[%clk 0:02:46.4]} 5. Nf3 {[%clk 0:02:48]} 5...
dxe4 {[%clk 0:02:40.2]} 6. Nxe4 {[%clk 0:02:48.3]} 6... Nd7 {[%clk 0:02:40.9]}
7. Bc4 {[%clk 0:02:38.7]} 7... Nb6 {[%clk 0:01:26.5]} 8. Bb3 {[%clk 0:02:36.4]}
8... Nf6 {[%clk 0:01:25.9]} 9. Nxf6+ {[%clk 0:02:32.8]} 9... exf6 {[%clk
0:01:27.8]} 10. Qe2+ {[%clk 0:02:13.9]} 10... Qe7 {[%clk 0:01:26.7]} 11. Qxe7+
{[%clk 0:02:12.8]} 11... Kxe7 {[%clk 0:01:28.6]} 12. Bd2 {[%clk 0:02:08.7]}
12... Rd8 {[%clk 0:01:29.1]} 13. Bb4+ {[%clk 0:02:04.5]} 13... Ke8 {[%clk
0:01:29]} 14. O-O-O {[%clk 0:02:00.9]} 14... Nd5 {[%clk 0:01:29.4]} 15. Rhe1+
{[%clk 0:01:58.5]} 15... Be6 {[%clk 0:01:30.4]} 16. Ba3 {[%clk 0:01:43.8]} 16...
b5 {[%clk 0:01:27]} 17. Bc5 {[%clk 0:01:38.5]} 17... a5 {[%clk 0:01:22.9]} 18.
a4 {[%clk 0:01:36.4]} 18... Bh6+ {[%clk 0:01:19.7]} 19. Kb1 {[%clk 0:01:36.3]}
19... Kd7 {[%clk 0:01:20.9]} 20. Nd2 {[%clk 0:01:27.6]} 20... Rdb8 {[%clk
0:01:18.1]} 21. axb5 {[%clk 0:01:10.3]} 21... cxb5 {[%clk 0:01:16.7]} 22. Ne4
{[%clk 0:00:56.7]} 22... Bg7 {[%clk 0:00:55.6]} 23. g3 {[%clk 0:00:40.9]} 23...
a4 {[%clk 0:00:55.3]} 24. Ba2 {[%clk 0:00:37.7]} 24... b4 {[%clk 0:00:53.5]} 25.
Bc4 {[%clk 0:00:35.9]} 25... a3 {[%clk 0:00:53.3]} 26. Bb3 {[%clk 0:00:27.1]}
26... f5 {[%clk 0:00:50.5]} 27. Ng5 {[%clk 0:00:23.9]} 27... axb2 {[%clk
0:00:35.7]} 28. Nxe6 {[%clk 0:00:24.6]} 28... Nc3+ {[%clk 0:00:34.6]} 29. Kxb2
{[%clk 0:00:23.7]} 29... Nxd1+ {[%clk 0:00:36.2]} 30. Rxd1 {[%clk 0:00:25.1]}
30... fxe6 {[%clk 0:00:37.2]} 31. Re1 {[%clk 0:00:19.6]} 31... Ra6 {[%clk
0:00:37.9]} 32. Bc4 {[%clk 0:00:18.6]} 32... Rc6 {[%clk 0:00:37.6]} 33. Kb3
{[%clk 0:00:19.9]} 33... e5 {[%clk 0:00:33.6]} 34. Bxb4 {[%clk 0:00:12.9]} 34...
Bf8 {[%clk 0:00:31.5]} 35. c3 {[%clk 0:00:13.1]} 35... Bxb4 {[%clk 0:00:31.4]}
36. cxb4 {[%clk 0:00:12.7]} 36... exd4 {[%clk 0:00:33.3]} 37. Ra1 {[%clk
0:00:08.3]} 37... Rd6 {[%clk 0:00:35.2]} 38. Ra7+ {[%clk 0:00:08.6]} 38... Kc6
{[%clk 0:00:36.6]} 39. Bd3 {[%clk 0:00:07]} 39... Rb7 {[%clk 0:00:37.2]} 40.
Ra6+ {[%clk 0:00:04.9]} 40... Rb6 {[%clk 0:00:37.1]} 41. Ra7 {[%clk 0:00:05.6]}
41... Rd7 {[%clk 0:00:38]} 42. Ra8 {[%clk 0:00:03.9]} 42... Rdb7 {[%clk
0:00:37.3]} 0-1

[Event "*** Titled Tuesday Blitz"]
[Site "Chess.com"]
[Date "2019.07.02"]
[Round "8"]
[White "Komissarov_alex"]
[Black "MikeSailer"]
[Result "0-1"]
[WhiteElo "2107"]
[BlackElo "2070"]
[TimeControl "180+2"]
[EndTime "14:49:04 PDT"]
[Termination "MikeSailer won on time"]

1. e4 {[%clk 0:03:00.1]} 1... d5 {[%clk 0:03:00.3]} 2. exd5 {[%clk 0:02:59.4]}
2... Qxd5 {[%clk 0:03:01.2]} 3. Nc3 {[%clk 0:02:59.4]} 3... Qd6 {[%clk
0:03:00.5]} 4. d4 {[%clk 0:02:57]} 4... Nf6 {[%clk 0:02:59.8]} 5. Nf3 {[%clk
0:02:57.4]} 5... c6 {[%clk 0:03:00.5]} 6. Ne5 {[%clk 0:02:57.5]} 6... Bf5 {[%clk
0:02:55.8]} 7. Bf4 {[%clk 0:02:53.1]} 7... Qd8 {[%clk 0:02:46.8]} 8. Bc4 {[%clk
0:02:51.7]} 8... e6 {[%clk 0:02:47.9]} 9. g4 {[%clk 0:02:48.4]} 9... Bg6 {[%clk
0:02:48.2]} 10. h4 {[%clk 0:02:44.6]} 10... Bb4 {[%clk 0:02:47.2]} 11. f3 {[%clk
0:02:32.7]} 11... Bxc2 {[%clk 0:01:44.6]} 12. Qxc2 {[%clk 0:02:24]} 12... Qxd4
{[%clk 0:01:45.1]} 13. Qd2 {[%clk 0:02:13.7]} 13... Qc5 {[%clk 0:01:36.9]} 14.
a3 {[%clk 0:01:58]} 14... Bxc3 {[%clk 0:01:34.3]} 15. Qxc3 {[%clk 0:01:55.3]}
15... O-O {[%clk 0:01:34.1]} 16. O-O-O {[%clk 0:01:47.5]} 16... Qb6 {[%clk
0:01:13.5]} 17. h5 {[%clk 0:01:41.3]} 17... Na6 {[%clk 0:01:07.3]} 18. g5 {[%clk
0:01:39]} 18... Nd5 {[%clk 0:01:07.8]} 19. Bxd5 {[%clk 0:01:14.7]} 19... cxd5
{[%clk 0:01:01.2]} 20. Kb1 {[%clk 0:00:40.9]} 20... Rac8 {[%clk 0:01:01.3]} 21.
Qd2 {[%clk 0:00:34.4]} 21... Nc5 {[%clk 0:00:52.7]} 22. Be3 {[%clk 0:00:26.8]}
22... Rfd8 {[%clk 0:00:42]} 23. Nd3 {[%clk 0:00:22.2]} 23... d4 {[%clk
0:00:40.9]} 24. Bf4 {[%clk 0:00:20.5]} 24... Nb3 {[%clk 0:00:30.3]} 25. Qb4
{[%clk 0:00:19.6]} 25... Qxb4 {[%clk 0:00:15.3]} 26. Nxb4 {[%clk 0:00:19.2]}
26... f6 {[%clk 0:00:11.4]} 27. Nd3 {[%clk 0:00:16.8]} 27... e5 {[%clk
0:00:11.9]} 28. Bg3 {[%clk 0:00:16.1]} 28... Kf7 {[%clk 0:00:10.5]} 29. gxf6
{[%clk 0:00:16]} 29... gxf6 {[%clk 0:00:11.7]} 30. Ka2 {[%clk 0:00:15.4]} 30...
Na5 {[%clk 0:00:10.5]} 31. Rc1 {[%clk 0:00:09.5]} 31... Nc4 {[%clk 0:00:11.6]}
32. b3 {[%clk 0:00:04.7]} 32... Nd2 {[%clk 0:00:12.8]} 33. Rxc8 {[%clk
0:00:04.1]} 33... Rxc8 {[%clk 0:00:14.4]} 0-1

[Event "*** Titled Tuesday Blitz"]
[Site "Chess.com"]
[Date "2019.07.02"]
[Round "8"]
[White "Witik"]
[Black "HanSchut"]
[Result "1-0"]
[WhiteElo "2525"]
[BlackElo "2209"]
[TimeControl "180+2"]
[EndTime "14:49:06 PDT"]
[Termination "Witik won on time"]

1. d4 {[%clk 0:03:01.9]} 1... Nf6 {[%clk 0:03:00.1]} 2. c4 {[%clk 0:03:02.5]}
2... g6 {[%clk 0:03:01.4]} 3. Nc3 {[%clk 0:03:03.2]} 3... d5 {[%clk 0:03:03]} 4.
cxd5 {[%clk 0:03:04.2]} 4... Nxd5 {[%clk 0:03:04.9]} 5. e4 {[%clk 0:03:05.9]}
5... Nxc3 {[%clk 0:03:06.3]} 6. bxc3 {[%clk 0:03:07.8]} 6... Bg7 {[%clk
0:03:07.6]} 7. Bg5 {[%clk 0:03:09.3]} 7... c6 {[%clk 0:03:02.6]} 8. Nf3 {[%clk
0:03:06]} 8... Bg4 {[%clk 0:03:01.7]} 9. Be2 {[%clk 0:02:58.2]} 9... Nd7 {[%clk
0:02:52.4]} 10. O-O {[%clk 0:02:56.7]} 10... Qa5 {[%clk 0:02:52.3]} 11. Qd2
{[%clk 0:02:50]} 11... h6 {[%clk 0:02:45.3]} 12. Be3 {[%clk 0:02:48.7]} 12...
Rd8 {[%clk 0:02:41.9]} 13. a4 {[%clk 0:02:20.8]} 13... e5 {[%clk 0:02:07.7]} 14.
Qb2 {[%clk 0:02:12.5]} 14... exd4 {[%clk 0:01:52.7]} 15. cxd4 {[%clk 0:02:09.6]}
15... c5 {[%clk 0:01:19]} 16. Qxb7 {[%clk 0:01:44.3]} 16... Bxf3 {[%clk
0:01:07.9]} 17. Bxf3 {[%clk 0:01:35.5]} 17... cxd4 {[%clk 0:01:06.8]} 18. Bf4
{[%clk 0:01:33]} 18... Be5 {[%clk 0:00:48]} 19. Bc1 {[%clk 0:01:21.2]} 19... O-O
{[%clk 0:00:37.1]} 20. Bxh6 {[%clk 0:01:21.5]} 20... Rfe8 {[%clk 0:00:38.2]} 21.
Qb5 {[%clk 0:01:16]} 21... Qc7 {[%clk 0:00:31.2]} 22. g3 {[%clk 0:01:08.7]}
22... Rb8 {[%clk 0:00:25.8]} 23. Qd5 {[%clk 0:00:57.5]} 23... Nb6 {[%clk
0:00:21.4]} 24. Qa2 {[%clk 0:00:56.4]} 24... Qd7 {[%clk 0:00:17.2]} 25. a5
{[%clk 0:00:53.3]} 25... Nc8 {[%clk 0:00:14.3]} 26. Kg2 {[%clk 0:00:46.3]} 26...
d3 {[%clk 0:00:15.2]} 27. Rad1 {[%clk 0:00:46.1]} 27... Rb2 {[%clk 0:00:15.8]}
28. Qd5 {[%clk 0:00:45.2]} 28... Qxd5 {[%clk 0:00:09.6]} 29. exd5 {[%clk
0:00:46.5]} 29... Rb3 {[%clk 0:00:09.2]} 30. Rfe1 {[%clk 0:00:38.1]} 30... Nd6
{[%clk 0:00:09.5]} 31. Re3 {[%clk 0:00:39.4]} 31... Nc4 {[%clk 0:00:05.9]} 32.
Rexd3 {[%clk 0:00:37.8]} 32... Rxd3 {[%clk 0:00:07.5]} 33. Rxd3 {[%clk 0:00:39]}
33... Nxa5 {[%clk 0:00:09.1]} 34. Ra3 {[%clk 0:00:21.6]} 34... Nc4 {[%clk
0:00:08.5]} 35. Rxa7 {[%clk 0:00:22]} 35... Bd4 {[%clk 0:00:09.4]} 36. Ra4
{[%clk 0:00:21.3]} 36... Rc8 {[%clk 0:00:08.7]} 37. d6 {[%clk 0:00:19.7]} 37...
Nxd6 {[%clk 0:00:05.1]} 38. Rxd4 {[%clk 0:00:20.3]} 38... Nf5 {[%clk 0:00:07]}
39. Bg4 {[%clk 0:00:13]} 1-0